Cogmind - Beta 14 @@@ ROGUE MODE // 2025.03.23 @ 15:03:02 // Winter2019/RPGLIKE Player: Lava Result: Destroyed by D-53 Grenadier with Mini Grenade Launcher Performance ------------- Evolutions (0) 0 Regions Visited (2) 400 Robots Destroyed (18) 90 Value Destroyed (530) 530 Prototype IDs (0) 0 Alien Tech Used (0) 0 Bonus (52) 52 TOTAL SCORE: 1072 Bonus ------- Follower Combat Kills 60 Friendly Fire -8 Cogmind --------- Core Integrity 0/600 Matter 203/300 Energy 125/125 System Corruption 5% Temperature Cool (0) Movement Treading (160) Location -10/Mines Parts ------- > --- POWER (1) -------- Light Ion Engine > --- PROPULSION (2) --- Light Treads Light Treads > --- UTILITY (2) ------ Signal Interpreter > --- WEAPON (2) ------- Light Assault Rifle Grenade Launcher > --- INVENTORY (3) ---- Structural Scanner Sensor Array Light Assault Rifle Peak State ------------ > --- POWER ------------ Light Ion Engine > --- PROPULSION ------- Light Treads Light Treads > --- UTILITY ---------- Structural Scanner Light Armor Plating > --- WEAPON ----------- Medium Laser Light Assault Rifle > --- INVENTORY -------- (None) [Rating: 7] Favorites ----------- Power Light Ion Engine Engine Light Ion Engine Propulsion Light Treads Treads Light Treads Utility Light Armor Plating Device Structural Scanner Processor Signal Interpreter Protection Light Armor Plating Weapon Light Assault Rifle Energy Gun Medium Laser Ballistic Gun Light Assault Rifle Launcher Grenade Launcher Build | -11 -10 -10 ------- Run | Yrd Mat Min Slots Evolved 3 | 3 . . Power . | . . . Propulsion 1 | 1 . . Utility 1 | 1 . . Weapon 1 | 1 . . Parts Attached 14 | 5 5 4 Power 1 | 1 . . Engine 1 | 1 . . Core . | . . . Reactor . | . . . Propulsion 2 | 2 . . Treads 2 | 2 . . Leg . | . . . Wheel . | . . . Hover . | . . . Flight . | . . . Utility 3 | . 2 1 Device 1 | . 1 . Storage . | . . . Processor 1 | . . 1 Hackware . | . . . Protection 1 | . 1 . Artifact . | . . . Weapon 8 | 2 3 3 Energy Gun 1 | 1 . . Energy Cannon . | . . . Ballistic Gun 5 | 1 3 1 Ballistic Cannon . | . . . Launcher 2 | . . 2 Special Weapon . | . . . Impact Weapon . | . . . Slashing Weapon . | . . . Piercing Weapon . | . . . Special Melee Weapon . | . . . Unidentified Prototypes . | . . . Parts Lost 1 | . . 1 Power . | . . . Propulsion . | . . . Utility 1 | . . 1 Weapon . | . . . Highest Loss Streak 1 | . . 1 To Critical Strikes . | . . . Average Slot Usage (%) 99 | . 99 99 Engine 14 | . 14 14 Treads 28 | . 28 28 Device 9 | . 13 . Processor 4 | . . 13 Protection 13 | . 13 13 Energy Gun 7 | . 10 . Ballistic Gun 20 | . 17 26 Peak Build Rating 7 | 5 7 7 Average Rating 6 | 3 6 6 On Entrance 4 | . 5 7 Naked Turns . | . . . Heaviest Build 10 | 6 10 10 Greatest Support 40 | 40 40 40 Greatest Overweight (x) . | . . . Average Overweight (x) . | . . . Largest Inventory Capacity 3 | 3 3 3 Average Capacity 3 | 3 3 3 Most Carried 3 | 2 3 3 Average Carried 2 | . 2 3 Final Capacity 3 | 3 3 3 Final Carried 3 | . 3 3 Class Distribution -------------------- 100% | Mutant Dominant Class ---------------- Mutant | -10/Materials Mutant | -10/Mines Resources | -11 -10 -10 ----------- Run | Yrd Mat Min Matter Collected 486 | 250 222 14 Remotely . | . . . Salvage Created 573 | . 428 145 Parts 29 | . 24 5 Haulers Intercepted . | . . . Recyclers Shooed 1 | . 1 . Parts Field Recycled . | . . . Retrieved Matter . | . . . Parts Self-Destructed . | . . . Prevented . | . . . Kills | -11 -10 -10 ------- Run | Yrd Mat Min Combat Hostiles Destroyed 22 | . 10 12 Guns 11 | . 10 1 AOE 11 | . . 11 Classes Destroyed 5 | . 4 1 Operator 1 | . 1 . Watcher 3 | . 3 . Swarmer 3 | . 3 . Grunt 11 | . 7 4 Assembled 8 | . . 8 Best Kill Streak 8 | . 3 8 Combat Bots Only 8 | . 3 8 Max Kills in Single Turn 5 | . 1 5 Gunslinging . | . . . Exploded 5 | . . 5 Melee . | . . . Uniques/NPCs Destroyed . | . . . Combat | -11 -10 -10 -------- Run | Yrd Mat Min Hostile Shots Fired 107 | . 72 35 Missed 25 | . 16 9 Damage Taken 1121 | . 757 364 Core 813 | . 547 266 Absorbed by Shields . | . . . Redirected to Core 654 | . 428 226 Core Remaining (%) 100 | 100 . . Volleys Fired 102 | . 96 6 Largest 2 | . 2 2 Hottest 70 | . 70 50 Shots Fired 180 | . 166 14 Gun 174 | . 166 8 Cannon . | . . . Launcher 6 | . . 6 Special . | . . . Kinetic 119 | . 111 8 Thermal 55 | . 55 . Explosive 6 | . . 6 Electromagnetic . | . . . Robot Hit Streak 12 | . 12 7 Robot Miss Streak 6 | . 6 2 Penetration Max . | . . . Secondary Targets 1 | . 1 . Max Gunslinging Chain 1 | . 1 . Shots Hit Robots 96 | . 90 6 Core Hits 64 | . 32 32 Critical Kills . | . . . Critical Parts Destroyed . | . . . Critical Strikes 2 | . 2 . Burn 2 | . 2 . Melee Attacks . | . . . Impact . | . . . Slashing . | . . . Piercing . | . . . Sneak Attacks . | . . . Combat Hostiles . | . . . Follow-up Attacks . | . . . Damage Inflicted 1868 | . 903 965 Guns 922 | . 882 40 Cannons . | . . . Explosions 908 | . . 908 Melee . | . . . Ramming 38 | . 21 17 Kinetic 524 | . 484 40 Thermal 398 | . 398 . Explosive 908 | . . 908 Electromagnetic . | . . . Impact . | . . . Slashing . | . . . Piercing . | . . . Highest Corruption 5 | . 5 5 Average Corruption 4 | . 4 5 Corruption Purged . | . . . Corruption Blocked . | . . . Effects 36 | . 17 19 Message Errors 5 | . . 5 Matter Fused 9 | . 7 2 Heat Flow Errors 5 | . 3 2 Energy Discharges 2 | . . 2 Parts Fused 1 | . . 1 Data Loss (minor) 5 | . 1 4 Data Loss (major) 2 | . 1 1 Misfires 3 | . 1 2 Alerts 3 | . 3 . Weapon Failures 1 | . 1 . Overload Shots . | . . . Overflow Damage 33 | . . 33 Projectiles . | . . . Explosions 33 | . . 33 Melee . | . . . Knockbacks 1 | . . 1 Impact 1 | . . 1 Kinetic . | . . . Secondary . | . . . Self-Inflicted Damage . | . . . Shots . | . . . Rammed 16 | . 12 4 Targets Rammed 16 | . 12 4 Kicked . | . . . Crushed . | . . . Highest Temperature 357 | . 357 250 Average Temperature 89 | . 92 69 Received Heat Transfer 477 | . 399 78 Effects 2 | . 2 . Energy Bleed 1 | . 1 . Matter Decay 1 | . 1 . Siege Activations . | . . . Robots Corrupted . | . . . Combat Hostiles . | . . . Parts Fried . | . . . Impact Corruptions . | . . . Robots Melted . | . . . Combat Hostiles . | . . . Parts Melted 2 | . 2 . Heat Transferred 1332 | . 1332 . Parts Sabotaged . | . . . Parts Stolen . | . . . Parts Stripped . | . . . Power Chain Reactions . | . . . Alert | -11 -10 -10 ------- Run | Yrd Mat Min Peak Influence 199 | . 196 199 Initial 18 | . . 18 Average 51 | . 40 82 Maximum Alert Level . | . . . Low Security (%) 100 | 100 100 100 Level 1 . | . . . Level 2 . | . . . Level 3 . | . . . Level 4 . | . . . Level 5 . | . . . High Security . | . . . Max Security . | . . . Squads Dispatched 2 | . 1 1 Investigation . | . . . Extermination . | . . . Reinforcement 1 | . 1 . Assault 1 | . . 1 Garrison . | . . . Intercept . | . . . Searches Triggered . | . . . Construction Impeded . | . . . Haulers Reinforced . | . . . Active Scanning Responses . | . . . Cargo Convoy Interrupts . | . . . Stealth | -11 -10 -10 --------- Run | Yrd Mat Min Distress Signals 1 | . 1 . Communications Jammed . | . . . Distress Signals . | . . . Times Spotted 55 | . 27 28 Peak Tracking Total 20 | . 5 20 Tactical Retreats . | . . . Traps | -11 -10 -10 ------- Run | Yrd Mat Min Traps Triggered 3 | . 3 . Indirectly . | . . . Trap Hack Attempts . | . . . Triggered . | . . . Disarmed 12 | . 12 . Reprogrammed . | . . . Reused . | . . . Traps Extracted . | . . . Installed . | . . . Triggered . | . . . Machines | -11 -10 -10 ---------- Run | Yrd Mat Min Machines Disabled 1 | . . 1 Max in Single Turn . | . . . Machines Repaired . | . . . Machines Dismantled . | . . . Machines Sabotaged . | . . . Overloaded Fab Kills . | . . . Hacking | -11 -10 -10 --------- Run | Yrd Mat Min Machines Accessed 8 | . 8 . Terminals 8 | . 8 . Fabricators . | . . . Repair Stations . | . . . Recycling Units . | . . . Scanalyzers . | . . . Garrison Access . | . . . Total Hacks 27 | . 27 . Successful 10 | . 10 . Failed 17 | . 17 . Catastrophic 4 | . 4 . Database Lockouts . | . . . Manual 16 | . 16 . Terminals 27 | . 27 . Fabricators . | . . . Repair Stations . | . . . Recycling Units . | . . . Scanalyzers . | . . . Garrison Access . | . . . Terminal Hacks 10 | . 10 . Record 1 | . 1 . Part Schematic 1 | . 1 . Robot Analysis 1 | . 1 . Terminal Index 1 | . 1 . Alert Level 1 | . 1 . Disarm Traps 2 | . 2 . Patrol Status 1 | . 1 . Hauler Manifests 1 | . 1 . Zone Layout 1 | . 1 . Fabricator Hacks . | . . . Repair Station Hacks . | . . . Recycling Unit Hacks . | . . . Scanalyzer . | . . . Garrison Access Hacks . | . . . Unauthorized Hacks . | . . . Terminals . | . . . Fabricators . | . . . Repair Stations . | . . . Recycling Units . | . . . Scanalyzers . | . . . Garrison Access . | . . . Data Cores Recovered . | . . . Used . | . . . Hacking Detections 8 | . 8 . Full Trace Events 3 | . 3 . Feedback Events . | . . . Feedback Blocked . | . . . Robot Schematics Acquired . | . . . Robots Built . | . . . Authchips . | . . . Time . | . . . Total Robot Build Rating . | . . . Part Schematics Acquired 1 | . 1 . Parts Built . | . . . Authchips . | . . . Time . | . . . Total Part Build Rating . | . . . Parts Repaired . | . . . Time . | . . . Parts Recycled . | . . . Recycled Matter . | . . . Retrieved Matter . | . . . Retrieved Components . | . . . Parts Scanalyzed . | . . . Part Schematics Acquired . | . . . Parts Damaged . | . . . Bothacking | -11 -10 -10 ------------ Run | Yrd Mat Min Used RIF Installer . | . . . Robots Hacked . | . . . Non-combat . | . . . Combat . | . . . Robot Hacks Applied . | . . . Relay Couplers Released . | . . . Fabnet Peak Effective % . | . . . Robots Rewired . | . . . Allies Hacked . | . . . Hacks Repelled . | . . . Allies | -11 -10 -10 -------- Run | Yrd Mat Min Total Allies 3 | . . 3 Largest Group 3 | . . 3 Highest-Rated Group 72 | . . 72 Highest-Rated Ally 31 | . . 31 Total Orders . | . . . Ally Attacks 26 | . . 26 Total Damage 382 | . . 382 Kills 6 | . . 6 Allies Corrupted . | . . . Allies Melted . | . . . Intel | -11 -10 -10 ------- Run | Yrd Mat Min Robot Analysis Total 1 | . 1 . Derelict Logs Recovered 1 | . . 1 Drone Launches . | . . . Drone Recoveries . | . . . Exploration | -11 -10 -10 ------------- Run | Yrd Mat Min Turns Passed 2662 | 70 1848 744 Spaces Moved 1446 | 40 961 445 Core 3 | 3 . . Treads 1443 | 37 961 445 Legs . | . . . Wheels . | . . . Hover . | . . . Flight . | . . . Fastest Speed 50 | 50 160 160 Average Speed 159 | 151 160 160 Slowest Speed 160 | 160 160 160 Overloaded Moves . | . . . Propulsion Burnouts . | . . . Robots Hopped . | . . . Cave-ins Triggered . | . . . Exploration Rate (%) 59 | 3 85 89 Regions Visited 2 Branch Regions 1 Pre-discovered Areas 1 | . . 1 Known Exits Taken . | . . . Unknown Exits Taken 2 | 1 1 . Scrap Searched 1 | . . 1 Spaces Dug . | . . . Terrain Destroyed 14 | . . 14 Melee . | . . . Projectile . | . . . AOE 14 | . . 14 Terrain Rammed . | . . . Walls Destroyed . | . . . Machines Disabled . | . . . Actions | -11 -10 -10 --------- Run | Yrd Mat Min Total 1633 | 49 1122 462 Wait 28 | . 28 . Move 1444 | 39 960 445 Hop . | . . . Pick Up 11 | 5 6 . Fast Attach 1 | . 1 . Attach 7 | 5 2 . Detach . | . . . Swap 6 | . 2 4 Drop 4 | . 4 . Fire 102 | . 96 6 Melee . | . . . Ram . | . . . Kick . | . . . Crush 16 | . 12 4 Escape Stasis . | . . . Rewire . | . . . Trap . | . . . Miscellaneous 14 | . 11 3 Route ------- -11/Scrapyard -10/Materials (discovered 5 exits: *Mat x2 / [*Min x2] / [*Sub]) -10/Mines (discovered 2 exits: *Mat x2) History --------- Turn | Location | Event 1 | -11/Scrapyard | Upgraded with Propulsion slot (x1) 1 | -11/Scrapyard | Upgraded with Utility slot (x1) 1 | -11/Scrapyard | Upgraded with Weapon slot (x1) 15 | -11/Scrapyard | Discovered new exit (range 15) 71 | -11/Scrapyard | Entered Materials 215 | -10/Materials | Discovered new exit (range 6) 302 | -10/Materials | Build established: Mutant 350 | -10/Materials | Discovered new exit (range 15) 949 | -10/Materials | Core integrity fell below 50% 1134 | -10/Materials | Discovered new exit (range 9) 1218 | -10/Materials | Discovered new exit (range 6) 1411 | -10/Materials | Discovered new exit (range 16) 1919 | -10/Materials | Entered Mines 1920 | -10/Mines | Met a Derelict testing a Signal Generator 1921 | -10/Mines | Reached level 2 1958 | -10/Mines | Met a Derelict bent on vengeance 2169 | -10/Mines | Discovered new exit (range 5) 2236 | -10/Mines | Discovered new exit (range 6) 2243 | -10/Mines | Identified exit to Materials 2306 | -10/Mines | Learned location of Storage (-9) 2395 | -10/Mines | Learned location of 2 exits from Materials 2623 | -10/Mines | Assembled infested the area 2636 | -10/Mines | Core integrity fell below 20% 2656 | -10/Mines | Destroyed 8 combat bots 2663 | -10/Mines | Destroyed by D-53 Grenadier with Mini Grenade Launcher Last Messages --------------- 02632_ Destroyed Asb. F-torch. 02632_ as-60371 destroyed. 02632_ as-05446 destroyed. 02632_ as-09618 destroyed. 02633_ Lgt. Armor Plating destroyed. 02635_ as-94070 destroyed. 02635_ Destroyed Asb. Hover Unit. 02635_ as-70461 destroyed. 02636_ as-88044 suffers critical hit (Burn). 02636_ as-88044 destroyed. 02638_ as-75996 destroyed. 02640_ as-11078 destroyed. 02644_ as-37081 suffers critical hit (Burn). 02645_ as-37081 destroyed. 02645_ ZZ-D0J(g) destroyed. 02647_ 9H-6DH(z) destroyed. 02651_ as-21875 destroyed. 02655_ System corrupted: Heat flow error (+148). [Achievement: Slippery One] 02656_ U-05 Engineer lays Concrete. Map ----- +----------------------------------------------------+ | ??????????????????????# #?????????? | | ??????????????????????# #?????????? | | ??????????????????????# #?????????? | | ??????????????????????# ####??????? | | ????????????????####??# #??????? | | ???????????????## ##?#### ######## | | ???????????????# #????# | | ????????????? ## #????# ######## | | ???????????# #???## ##????? | | ??????????## ! #??## #????? | | ????????### %x! #### #????? | | ????????# %* #????? | | ???????## ##????? | | ?????### ### ##?????? | | ?????# ## #??????? | | ?????# #?## #??????? | | ??#### %d #??### #??????? | | ?## %#?# %####?# ?????? | | ?# ### ### ###????? | | ?#< ## #??????? | | ?# u x #??????? | | ?# ### #?# #### | | ??# ######?? #?# | | ??## ##??????? #?###### | | ???## ######???????? ???????# | | ????## @##????????????? ???????? | | ?????# #??????????????#???????? | | ????# ##??????????????????????? | | ????# ????????????????????????? | | ????# ????????????????????????? | | ????## #????????????????????????? | | ?????####?????????????????????????? | | ??????????????????????????????????? | | ???????????####???????????????????? | | ??????????? ???????????????????? | | ??????x???? ???????????????????? | | ???????????# #???????????????????? | | ???????????# #???????????????????? | | ???????????# #???????????????????? | | ???????????# #???????????????????? | | ?????####??# #???????????????????? | | ????########x #???????????##??????? | | ????## #?????????? ??????? | | ????## ##### ##???????? ???????? | | ????## ##?# ##????? ????????? | | ????## ##?# #???? ""??????????? | | ????## #### #### """ ????????? | | ???### #### """ ????????? | | ??#### #### ### ## #?????? | | ??### ######?# #???? #?????? | +----------------------------------------------------+ Best States ------------- Heat Dissipation 25 Energy Generation 10 Energy Capacity 125 Matter Stores 300 Matter Capacity 300 Sight Range 16 Robot Scan Range 18 Terrain Scan Density 10 Armor Coverage 150 Evasion (%) 40 Recoil Reduction 2 Item Schematics ----------------- Assault Rifle | -10/Materials | Hacked Robot Schematics ------------------ None Fabricated ------------ Nothing Alien Tech Used ----------------- None Achievements -------------- Hunted Slippery One Challenges ------------ None RPGLIKE | -11 -10 -10 --------- Run | Yrd Mat Min Levels Raised 1 | . . 1 XP Earned 5894 | 3000 1485 1409 XP Spent 4350 | 3000 . 1350 Upgrades 15 | 6 . 9 Propulsion Slot 1 | 1 . . Utility Slot 1 | 1 . . Weapon Slot 1 | 1 . . Inventory Capacity 3 | 3 . . Sensor Range 9 | . . 9 Protomatter Created 136 | . 111 25 Integrity Restored 286 | . 223 63 Core 212 | . 149 63 Parts 74 | . 74 . Protomatter Decayed 129 | . 34 95 Game ------ Seed ActuatorArmorMount Manual? 0 Play Time 00:14:40 Cumulative 31.7 hours Start 2025.03.23 @ 14:48:53 End 2025.03.23 @ 15:03:02 Sessions 1 Manual Loads 0 Difficulty Rogue Special Mode Winter2019/RPGLIKE Game No. 52 Rogue 52 Adventurer 0 Explorer 0 Win Type - Total 0 Types 0/0/0/0/0/0/0/0/0 Lore% 13 Gallery% 25 Achievement% 28 Wizard Run 0 Options --------- Layout 0 ASCII 0 Keyboard 0 Movement Mouse Keybinds 0 Fullscreen 1 Font 24/Smallcaps Map View 76x56 Zoom Use 4% Tactical HUD 1 Map Filters NONE Filters NONE Steam 1 RUN: d0d0191b-7f4c-42da-bea0-649eb6cec3a7